bitfinex/quotes_BTCUSD_20250814
["timestamp","ask_amount","ask_price","bid_price","bid_amount"]
[1755176078139,0.17488675,119160.0,119140.0,0.17715875]
[1755176078347,0.17813675,119160.0,119140.0,0.17715875]
[1755176078958,0.16785564,119150.0,119130.0,0.20124]
[1755176079163,0.17110564,119150.0,119140.0,0.18676]
[1755176079786,0.17110564,119150.0,119140.0,0.18776]
[1755176079903,0.00325,119150.0,119140.0,0.18776]
[1755176080105,0.17372838,119150.0,119140.0,0.18676]
[1755176080402,0.17110564,119150.0,119140.0,0.18676]
[1755176080625,0.18652882,119160.0,119140.0,0.18676]
[1755176080845,0.17372838,119150.0,119140.0,0.18676]
[1755176081068,0.17110564,119150.0,119140.0,0.18676]
[1755176081278,0.00325,119150.0,119140.0,0.18776]
[1755176081484,0.00587274,119150.0,119140.0,0.18776]
[1755176081685,0.17472838,119150.0,119140.0,0.18776]
[1755176081891,0.17210564,119150.0,119140.0,0.18776]
[1755176082531,0.17210564,119150.0,119140.0,0.001]
[1755176082532,0.25482889,119150.0,119140.0,0.001]
[1755176082739,1.14464598,119150.0,119140.0,0.001]
[1755176083161,0.039,119140.0,119120.0,0.18652]
[1755176083369,0.16791201,119110.0,119100.0,0.38756]
[1755176083805,0.16791201,119110.0,119100.0,0.18636]
[1755176083974,0.17116201,119110.0,119100.0,0.18636]
[1755176084642,0.17116201,119110.0,119100.0,0.001]
[1755176085101,0.2877925,119110.0,119100.0,0.001]
[1755176085320,0.59388526,119110.0,119100.0,0.001]
[1755176085532,1.29834546,119110.0,119100.0,0.001]
[1755176085798,1.29834546,119110.0,119100.0,0.002]
[1755176086018,1.48642546,119110.0,119100.0,0.002]
[1755176086251,0.78196526,119110.0,119100.0,0.002]
[1755176086473,0.59588526,119110.0,119100.0,0.002]
[1755176086700,0.17297498,119100.0,119080.0,0.00105166]
[1755176086907,0.09101822,119100.0,119080.0,0.00105166]
[1755176087142,0.26056889,119100.0,119080.0,0.00105166]
[1755176087354,0.00262406,119090.0,119070.0,0.7044361]
[1755176087563,0.00262406,119090.0,119080.0,0.00105219]
[1755176087772,0.00262406,119090.0,119070.0,0.77501971]
[1755176088185,0.17381534,119090.0,119070.0,0.77501971]
[1755176088387,0.17119128,119090.0,119070.0,0.77501971]
[1755176088795,0.16795431,119080.0,119070.0,0.7044361]
[1755176089005,0.17120431,119080.0,119070.0,0.7044361]
[1755176089411,0.17120431,119080.0,119070.0,0.7054361]
[1755176089635,0.17120431,119080.0,119070.0,0.70139113]
[1755176089893,0.00325,119080.0,119070.0,0.70139113]
[1755176090094,0.25366453,119090.0,119070.0,0.70139113]
[1755176090305,0.25366453,119090.0,119070.0,0.58541024]
[1755176090306,0.25691453,119090.0,119070.0,0.58541024]
[1755176090520,0.66401684,119080.0,119070.0,0.51523113]
[1755176090728,0.66139256,119080.0,119070.0,0.51523113]
[1755176091178,0.66339256,119080.0,119070.0,0.51623113]
[1755176091375,0.66339256,119080.0,119070.0,0.48992002]
[1755176091591,0.66139256,119080.0,119070.0,0.48892002]
[1755176091785,0.77944756,119080.0,119070.0,0.48892002]
[1755176092057,0.78644756,119080.0,119070.0,0.49092002]
[1755176092307,1.48590776,119080.0,119070.0,0.48992002]
[1755176092518,1.51090776,119080.0,119070.0,0.48992002]
[1755176092734,1.51490776,119080.0,119070.0,0.48992002]
[1755176093402,1.51990776,119080.0,119070.0,0.48992002]
[1755176093838,1.49490776,119080.0,119070.0,0.48992002]
[1755176094252,1.48390776,119080.0,119070.0,0.48892002]
[1755176094714,1.48990776,119080.0,119070.0,0.48992002]
[1755176095758,1.60537776,119080.0,119070.0,0.48992002]
[1755176095967,0.90091756,119080.0,119070.0,0.48992002]
[1755176096186,1.60537776,119080.0,119070.0,0.48992002]
[1755176096401,1.60537776,119080.0,119060.0,0.0004]
[1755176096402,0.50796842,119070.0,119060.0,0.0004]
[1755176096609,0.77902167,119070.0,119060.0,0.0004]
[1755176096819,0.59394167,119070.0,119060.0,0.0004]
[1755176097031,0.77898167,119070.0,119060.0,0.0004]
[1755176097254,0.59394167,119070.0,119060.0,0.0004]
[1755176097665,0.25069167,119070.0,119060.0,0.0004]
[1755176098312,0.25469167,119070.0,119060.0,0.0014]
[1755176098536,0.25394167,119070.0,119060.0,0.0004]
[1755176098740,0.95840187,119070.0,119060.0,0.0004]
[1755176098958,0.96140187,119070.0,119060.0,0.0014]
[1755176099189,1.14328187,119070.0,119060.0,0.0004]
[1755176099630,1.14328187,119070.0,119060.0,0.0014]
[1755176099631,1.14428187,119070.0,119060.0,0.0014]
[1755176099929,0.43982167,119070.0,119060.0,0.0014]
[1755176100146,0.44482167,119070.0,119060.0,0.0014]
[1755176100380,0.25994167,119070.0,119060.0,0.0014]
[1755176100596,0.25169167,119070.0,119060.0,0.0014]
[1755176100815,0.08372325,119070.0,119060.0,0.0014]
[1755176101065,0.08634775,119070.0,119060.0,0.0014]
[1755176101307,0.25831617,119070.0,119060.0,0.0014]
[1755176101568,0.08772325,119070.0,119060.0,0.0014]
[1755176101801,0.08772325,119070.0,119060.0,0.18708]
[1755176101802,0.005,119070.0,119060.0,0.18708]
[1755176102045,0.005,119070.0,119060.0,0.0014]
[1755176102251,0.17559292,119070.0,119060.0,0.0014]
[1755176102465,0.17296842,119070.0,119060.0,0.0014]
[1755176102687,0.005,119070.0,119060.0,0.0014]
[1755176102894,0.0076245,119070.0,119060.0,0.0014]
[1755176103336,0.005,119070.0,119060.0,0.0014]
[1755176103549,0.005,119070.0,119060.0,0.00245325]
[1755176103731,0.005,119070.0,119060.0,0.00345325]
[1755176104380,0.005,119070.0,119060.0,0.0014]
[1755176104587,0.001,119070.0,119060.0,0.0014]
[1755176105008,0.17057937,119080.0,119060.0,0.0004]
[1755176105221,0.002,119070.0,119060.0,0.0004]
[1755176105431,0.003,119070.0,119060.0,0.18676]
[1755176106462,0.003,119070.0,119060.0,0.215536]
[1755176106670,0.003,119070.0,119060.0,0.18676]
[1755176106904,0.00274,119070.0,119060.0,0.18676]
[1755176107128,0.001,119070.0,119060.0,0.18676]
[1755176107574,0.001,119070.0,119060.0,0.18776]
[1755176107790,0.001,119070.0,119060.0,0.18736]
[1755176107791,0.17159292,119070.0,119060.0,0.18736]
[1755176108012,0.17218842,119070.0,119060.0,0.18736]
[1755176108230,0.80528497,119070.0,119060.0,0.18636]
[1755176108445,0.80528497,119070.0,119060.0,0.0024]
[1755176109583,0.80528497,119070.0,119050.0,0.25862981]
[1755176109810,0.72556172,119070.0,119060.0,0.001]
[1755176110038,0.87214379,119070.0,119060.0,0.001]
[1755176110665,1.0073427,119070.0,119060.0,0.001]
[1755176111074,1.3473427,119070.0,119060.0,0.001]
[1755176111489,0.16798252,119060.0,119050.0,0.07470981]
[1755176111656,0.80429907,119060.0,119050.0,0.07470981]
[1755176112374,0.81948058,119060.0,119050.0,0.07470981]
[1755176112587,0.81948058,119060.0,119030.0,0.38536]
[1755176112588,0.16801075,119040.0,119030.0,0.0004]
[1755176112792,0.9846673,119040.0,119030.0,0.0004]
[1755176112991,0.9878873,119040.0,119030.0,0.0004]
[1755176113850,0.253954,119040.0,119030.0,0.0004]
[1755176115753,0.08572325,119040.0,119030.0,0.0014]
[1755176115902,0.08534841,119040.0,119030.0,0.0004]
[1755176116111,0.25335916,119040.0,119030.0,0.0004]
[1755176116365,0.250734,119040.0,119030.0,0.0004]
[1755176116565,0.254734,119040.0,119030.0,0.0014]
[1755176117337,0.004,119040.0,119030.0,0.0024]
[1755176117633,0.004,119040.0,119020.0,0.00100001]
[1755176118618,0.81472881,119040.0,119020.0,0.18292]
[1755176118820,0.00262538,119030.0,119020.0,0.18292]
[1755176119641,0.00262538,119030.0,119020.0,0.18392]
[1755176120065,0.00262538,119030.0,119010.0,7e-05]
[1755176120267,0.002,119030.0,119020.0,0.1828]
[1755176120469,0.003,119030.0,119020.0,0.30505164]
[1755176120706,0.003,119030.0,119020.0,0.59178062]
[1755176120921,0.003,119030.0,119020.0,0.24094164]
[1755176121035,0.003,119030.0,119020.0,0.18372]
[1755176121467,0.003,119030.0,119020.0,0.001]
[1755176121714,0.003,119030.0,119020.0,0.18364]
[1755176122121,0.001,119030.0,119020.0,0.18364]
[1755176122324,0.00362538,119030.0,119020.0,0.001]
[1755176122562,0.17587024,119030.0,119020.0,0.18356]
[1755176122805,0.17224486,119030.0,119020.0,0.18256]
[1755176123011,0.17224486,119030.0,119010.0,7e-05]
[1755176123012,0.16703898,119020.0,119010.0,7e-05]
[1755176123229,0.04322,119020.0,119010.0,0.18255]
[1755176123444,0.0458456,119020.0,119010.0,0.18255]
[1755176123870,0.039,119020.0,119010.0,7e-05]
[1755176124079,0.039,119020.0,119010.0,0.18247]
[1755176124297,0.038,119020.0,119010.0,0.18247]
[1755176124503,0.038,119020.0,119010.0,0.20130709]
[1755176124722,0.04,119020.0,119010.0,0.00107]
[1755176124935,0.0426256,119020.0,119010.0,0.18343]
[1755176125587,0.05781087,119020.0,119010.0,0.18343]
[1755176125802,0.06103087,119020.0,119010.0,0.18331]
[1755176126006,0.05840527,119020.0,119010.0,0.18331]
[1755176126225,0.05318527,119020.0,119010.0,0.18231]
[1755176127083,0.05518527,119020.0,119010.0,0.18231]
[1755176127302,0.05718527,119020.0,119010.0,0.18331]
[1755176127546,0.05981087,119020.0,119010.0,0.18331]
[1755176127769,0.05781087,119020.0,119010.0,0.18331]
[1755176128008,0.06103087,119020.0,119010.0,0.18331]
[1755176128241,0.06303087,119020.0,119010.0,0.00107]
[1755176128463,0.95453719,119020.0,119010.0,0.00107]
[1755176128712,0.95191159,119020.0,119010.0,0.00107]
[1755176129170,0.23349931,119020.0,119010.0,0.00107]
[1755176129409,0.40153829,119020.0,119010.0,0.00107]
[1755176129629,0.1680531,119010.0,119000.0,0.0049]
[1755176129857,0.86050795,119010.0,119000.0,0.0049]
[1755176130126,0.86050795,119010.0,118960.0,0.1818]
[1755176130127,0.16809285,118990.0,118960.0,0.1818]
[1755176130348,0.08534974,118980.0,118960.0,0.1818]
[1755176130782,0.08534743,118980.0,118960.0,0.1818]
[1755176131231,0.08272325,118980.0,118960.0,0.1818]
[1755176131479,0.08534974,118980.0,118960.0,0.01867]
[1755176131690,0.08534974,118980.0,118960.0,0.001]
[1755176131929,0.00462649,118980.0,118960.0,0.001]
[1755176132380,0.59405285,118970.0,118960.0,0.001]
[1755176132612,0.60915789,118970.0,118960.0,0.001]
[1755176132840,0.09782829,118970.0,118960.0,0.001]
[1755176133062,0.34462649,118980.0,118960.0,0.18256]
[1755176133291,0.01709897,118980.0,118960.0,0.203976]
[1755176133583,0.01709897,118980.0,118960.0,0.019256]
[1755176133584,0.25866564,118980.0,118960.0,0.019256]
[1755176133821,0.59667956,118970.0,118960.0,0.001]
[1755176134044,0.60915159,118970.0,118960.0,0.001]
[1755176134469,1.15952489,118970.0,118960.0,0.001]
[1755176134672,0.5081284,118960.0,118940.0,0.1814]
[1755176134889,0.26511516,118950.0,118940.0,0.18136]
[1755176135107,0.26248801,118950.0,118940.0,0.18136]
[1755176135337,0.08594325,118950.0,118920.0,0.20148]
[1755176135544,0.0853504,118950.0,118940.0,0.18132]
[1755176135762,0.25670828,118950.0,118940.0,0.18128]
[1755176135969,0.08594325,118950.0,118940.0,0.18128]
[1755176136189,0.0885704,118950.0,118940.0,0.18128]
[1755176137271,0.0873504,118950.0,118940.0,0.18128]
[1755176137490,0.002,118950.0,118940.0,0.18128]
[1755176137944,0.002,118950.0,118920.0,0.20148]
[1755176138166,0.002,118950.0,118940.0,0.18108]
[1755176138370,0.002,118950.0,118940.0,0.18429]
[1755176138583,0.004,118950.0,118940.0,0.202719]
[1755176138827,0.004,118950.0,118940.0,0.370871]
[1755176139093,0.07328149,118980.0,118940.0,0.45359272]
[1755176139317,0.01507321,118980.0,118950.0,0.18175811]
[1755176139541,0.01507321,118980.0,118960.0,0.18092]
[1755176139762,0.00262627,118990.0,118960.0,0.21081533]
[1755176139982,0.0150736,118990.0,118970.0,0.00521261]
[1755176140212,0.0150736,118990.0,118980.0,0.18088]
[1755176141330,0.17964691,119010.0,118980.0,0.18088]
[1755176141331,0.038,119020.0,118980.0,0.38561]
[1755176141562,0.05308047,119020.0,118990.0,0.00521159]
[1755176141781,0.05308047,119020.0,119000.0,0.18072]
[1755176142457,0.05308047,119020.0,119010.0,0.00200098]
[1755176142676,0.05308047,119020.0,119010.0,0.00521098]
[1755176143138,0.05508047,119020.0,119010.0,0.00200098]
[1755176143587,0.05508047,119020.0,119010.0,0.00521098]
[1755176144034,0.04,119020.0,119010.0,0.17326408]
[1755176144261,0.04,119020.0,119010.0,0.05551511]
[1755176144480,0.04,119020.0,119010.0,0.05751594]
[1755176144701,0.038,119020.0,118990.0,0.028414]
[1755176144922,0.0530892,119020.0,119010.0,0.18044]
[1755176145131,0.0590892,119020.0,119010.0,0.18244]
[1755176145533,0.0590892,119020.0,119010.0,0.002]
[1755176145798,0.0629048,119020.0,119010.0,0.001]
[1755176146019,0.16805502,119010.0,118980.0,0.03]
[1755176146239,0.00262605,119000.0,118990.0,0.18028]
[1755176146461,0.041,119020.0,118990.0,0.18028]
[1755176146696,0.13881705,119020.0,118990.0,0.18349]
[1755176146925,0.05834447,119020.0,119000.0,0.00531084]
[1755176147152,0.0560938,119020.0,119010.0,0.18016]
[1755176147586,0.0602838,119020.0,118990.0,0.10828225]
[1755176147799,0.0602838,119020.0,119010.0,0.18012]
[1755176148029,0.17645689,119010.0,118980.0,0.03321]
[1755176148254,0.0150938,119010.0,118980.0,0.0559898]
[1755176148482,0.01634447,119010.0,119000.0,0.001]
[1755176148706,0.26487015,119010.0,119000.0,0.18096]
[1755176149128,0.26706015,119010.0,119000.0,0.17996]
[1755176149299,0.26806015,119010.0,119000.0,0.17996]
[1755176149530,0.16808135,118990.0,118980.0,0.031]
[1755176149740,0.2539946,118990.0,118980.0,0.031]
[1755176149949,0.2539946,118990.0,118980.0,0.03]
[1755176150357,0.2539946,118990.0,118980.0,0.02592]
[1755176152366,0.2579946,118990.0,118980.0,0.02592]
[1755176152772,0.2649946,118990.0,118980.0,0.02592]
[1755176153181,0.011,118990.0,118980.0,0.06577703]
[1755176153388,0.01325067,118990.0,118980.0,0.02592]
[1755176153651,0.011,118990.0,118980.0,0.02592]
[1755176154008,0.011,118990.0,118980.0,0.02802119]
[1755176154252,0.011,118990.0,118980.0,0.07037712]
[1755176154408,0.011,118990.0,118980.0,0.02592]
[1755176155016,0.007,118990.0,118980.0,0.02592]
[1755176155196,0.00544067,119010.0,118980.0,0.02913]
[1755176155398,0.002,118990.0,118980.0,0.02592]
[1755176155601,0.009,118990.0,118980.0,0.2062]
[1755176156039,0.01719057,118990.0,118980.0,0.2062]
[1755176156255,0.01244067,118990.0,118980.0,0.2062]
[1755176157257,0.01444067,118990.0,118980.0,0.2062]
[1755176157766,0.26524527,118990.0,118980.0,0.20612]
[1755176157972,0.2629946,118990.0,118980.0,0.20612]
[1755176158430,0.2629946,118990.0,118980.0,0.02692]
[1755176158634,0.2629946,118990.0,118980.0,0.206]
[1755176159378,0.2629946,118990.0,118980.0,0.20596]
[1755176159573,0.09491325,118990.0,118980.0,0.20596]
[1755176159774,0.09397392,118990.0,118980.0,0.22991325]
[1755176159986,0.09397392,118990.0,118980.0,0.20596]
[1755176160195,0.09716392,118990.0,118980.0,0.20596]
[1755176160409,0.009,118990.0,118980.0,0.20596]
[1755176160663,0.01125067,118990.0,118980.0,0.20596]
[1755176160875,0.01125067,118990.0,118980.0,0.20576]
[1755176161296,0.02642683,118990.0,118980.0,0.20576]
[1755176161721,0.02950343,118990.0,118980.0,0.20576]
[1755176162127,0.02911463,118990.0,118980.0,0.20576]
[1755176162593,0.02749463,118990.0,118980.0,0.20576]
[1755176162807,0.19557598,118990.0,118980.0,0.20576]
[1755176163025,0.19267731,118990.0,118980.0,0.20576]
[1755176163256,0.02140596,118990.0,118980.0,0.20576]
[1755176163488,0.02365663,118990.0,118980.0,0.20576]
[1755176163703,0.19092798,118990.0,118980.0,0.02692]
[1755176163924,0.27459056,118990.0,118980.0,0.20548]
[1755176164156,0.10602321,118990.0,118980.0,0.20548]
[1755176164379,0.27635523,118990.0,118980.0,0.20548]
[1755176164597,0.27410456,118990.0,118980.0,0.20548]
[1755176165046,1.16447786,118990.0,118980.0,0.02692]
[1755176166152,1.15954406,118990.0,118980.0,0.02592]
[1755176166302,1.16554406,118990.0,118980.0,0.02692]
[1755176166659,0.61517076,118990.0,118980.0,0.02692]
[1755176166862,0.11108941,118990.0,118980.0,0.02692]
[1755176167082,0.28142143,118990.0,118980.0,0.04746]
[1755176167305,0.28142143,118990.0,118980.0,0.02692]
[1755176167306,0.27917076,118990.0,118980.0,0.02692]
[1755176168365,0.27917076,118990.0,118980.0,0.2052]
[1755176169027,1.16954406,118990.0,118980.0,0.02692]
[1755176169460,0.61917076,118990.0,118980.0,0.02692]
[1755176169928,0.61917076,118990.0,118980.0,0.205]
[1755176171366,0.61917076,118990.0,118980.0,0.02692]
[1755176172837,0.11108941,118990.0,118980.0,0.02692]
[1755176173059,0.28131143,118990.0,118980.0,0.02692]
[1755176173309,0.61906076,118990.0,118980.0,0.02692]
[1755176173562,1.16943406,118990.0,118980.0,0.02692]
[1755176174004,0.61906076,118990.0,118980.0,0.02692]
[1755176174447,1.16943406,118990.0,118980.0,0.02692]
[1755176174889,1.29362406,118990.0,118980.0,0.02692]
[1755176175549,1.28962406,118990.0,118980.0,0.02692]
[1755176176282,1.46726406,118990.0,118980.0,0.02692]
[1755176176550,1.46126406,118990.0,118980.0,0.02592]
[1755176176790,1.46126406,118990.0,118980.0,1e-08]
[1755176177041,2.04163736,118990.0,118980.0,1e-08]
[1755176177476,1.49126406,118990.0,118980.0,1e-08]
[1755176177931,2.06011053,118990.0,118980.0,1e-08]
[1755176178150,2.09311053,118990.0,118980.0,1e-08]
[1755176178630,2.08711053,118990.0,118980.0,1e-08]
[1755176179077,0.80872393,118990.0,118980.0,1e-08]
[1755176179304,1.90947053,118990.0,118980.0,1e-08]
[1755176179518,2.08675053,118990.0,118980.0,1e-08]
[1755176179972,2.07875053,118990.0,118980.0,1e-08]
[1755176180874,0.17660855,118910.0,118900.0,0.17724]
[1755176181092,0.17660855,118910.0,118880.0,0.20156]
[1755176181093,0.2593318,118910.0,118880.0,0.20156]
[1755176181316,0.00225067,118900.0,118880.0,0.4056225]
[1755176181551,0.25318278,118900.0,118880.0,0.2285025]
[1755176181778,0.00225067,118890.0,118880.0,0.2285025]
[1755176181992,0.00225067,118890.0,118880.0,0.20156]
[1755176182214,0.25093521,118900.0,118880.0,0.20156]
[1755176182462,0.08272325,118900.0,118870.0,0.0004]
[1755176182684,0.17047448,118890.0,118880.0,0.177]
[1755176182936,0.25094706,118890.0,118880.0,0.19474]
[1755176183363,0.16823687,118880.0,118870.0,0.0004]
[1755176183593,0.08272325,118880.0,118870.0,0.0004]
[1755176183862,0.08497392,118880.0,118870.0,0.0004]
[1755176184295,0.25321079,118880.0,118870.0,0.0004]
[1755176184514,0.25096012,118880.0,118870.0,0.0004]
[1755176185829,0.25196012,118880.0,118870.0,0.0004]
[1755176186048,0.25496012,118880.0,118870.0,0.0004]
[1755176186266,0.25496012,118880.0,118870.0,0.17716]
[1755176186477,0.25496012,118880.0,118870.0,0.0004]
[1755176186744,0.25804012,118880.0,118870.0,0.0004]
[1755176187205,0.63621259,118880.0,118870.0,0.0004]
[1755176187451,1.18658589,118880.0,118870.0,0.0004]
[1755176188340,0.63521259,118880.0,118870.0,0.0004]
[1755176188790,1.18958589,118880.0,118870.0,0.0004]
[1755176189249,0.65131098,118880.0,118870.0,0.0004]
[1755176189462,1.20168428,118880.0,118870.0,0.0004]
[1755176189680,1.20668428,118880.0,118870.0,0.0004]
[1755176192294,0.16827934,118850.0,118840.0,7e-05]
[1755176192527,0.81955428,118850.0,118840.0,7e-05]
[1755176192963,1.15950573,118850.0,118840.0,7e-05]
[1755176194154,0.1682935,118840.0,118830.0,0.5182761]
[1755176194359,0.60914659,118840.0,118830.0,0.5182761]
[1755176194579,1.27908364,118840.0,118830.0,0.50986839]
[1755176194780,0.72871034,118840.0,118830.0,0.50986839]
[1755176195155,1.3178284,118840.0,118830.0,0.46878368]
[1755176195382,1.3178284,118840.0,118830.0,0.3740933]
[1755176195597,1.3428284,118840.0,118830.0,0.31239519]
[1755176195804,0.16835016,118800.0,118790.0,0.00350069]
[1755176196036,0.7337733,118800.0,118790.0,0.00350069]
[1755176196270,0.7337733,118800.0,118760.0,0.0036]
[1755176196271,0.16839269,118770.0,118760.0,0.0004]
[1755176196492,0.28479425,118770.0,118760.0,0.0004]
[1755176196763,0.08272325,118770.0,118760.0,0.00359]
[1755176196993,0.25336661,118770.0,118760.0,0.0004]
[1755176197236,0.80148924,118770.0,118760.0,0.0004]
[1755176197475,1.14444924,118770.0,118760.0,0.0004]
[1755176197719,1.14148924,118770.0,118760.0,0.0004]
[1755176197963,0.59311594,118770.0,118760.0,0.0004]
[1755176198214,0.63025719,118770.0,118760.0,0.0004]
[1755176199184,0.63521719,118770.0,118760.0,0.0004]
[1755176199648,0.82413443,118770.0,118760.0,0.0004]
[1755176199867,1.21691569,118760.0,118750.0,0.10491]
[1755176200090,1.21694405,118740.0,118730.0,0.49159229]
[1755176200317,1.23190129,118740.0,118730.0,0.49159229]
[1755176200525,1.23486129,118740.0,118730.0,0.49159229]
[1755176200971,1.23486129,118740.0,118730.0,1e-08]
[1755176201185,0.16850619,118690.0,118680.0,7e-05]
[1755176201705,0.87701501,118690.0,118680.0,7e-05]
[1755176201953,0.51146619,118690.0,118680.0,7e-05]
[1755176202216,0.16854363,118670.0,118650.0,0.1758]
[1755176202502,0.00225067,118660.0,118650.0,0.1758]
[1755176202773,0.00225067,118680.0,118650.0,0.30749]
[1755176203019,0.00225067,118700.0,118660.0,0.12031637]
[1755176203217,0.00225067,118700.0,118670.0,0.00319]
[1755176203218,0.01067526,118700.0,118670.0,0.00319]
[1755176203422,0.00225067,118700.0,118680.0,0.00319]
[1755176203637,0.00225067,118700.0,118670.0,0.35276089]
[1755176203638,0.12232629,118700.0,118670.0,0.35276089]
[1755176203860,0.00225067,118730.0,118690.0,0.16850576]
[1755176204070,0.08272325,118720.0,118700.0,0.00210567]
[1755176204277,0.25344068,118720.0,118700.0,0.00319]
[1755176204495,0.00225067,118710.0,118700.0,0.17891]
[1755176204705,0.0376721,118730.0,118700.0,0.38097784]
[1755176204917,0.00225067,118750.0,118710.0,0.2082713]
[1755176205129,0.17688332,118770.0,118720.0,0.29418583]
[1755176205130,0.01488608,118770.0,118720.0,0.29418583]
[1755176205355,0.03855472,118750.0,118730.0,0.00620308]
[1755176205549,0.16845078,118730.0,118720.0,0.00319]
[1755176205732,0.25117267,118730.0,118710.0,0.17568]
[1755176205971,0.087987,118720.0,118700.0,0.00319]
[1755176206179,0.1684778,118710.0,118700.0,0.00319]
[1755176206782,0.16850619,118690.0,118680.0,0.00319]
[1755176207024,0.25121524,118700.0,118690.0,0.17564]
[1755176207242,0.16852665,118680.0,118660.0,0.00319]
[1755176207451,0.00526375,118670.0,118660.0,0.00319]
[1755176207677,0.25963983,118700.0,118660.0,0.17879]
[1755176207882,0.25963983,118700.0,118670.0,0.00319]
[1755176207883,0.16852299,118680.0,118670.0,0.00319]
[1755176208106,0.17693216,118690.0,118650.0,0.00329227]
[1755176208329,0.16850646,118690.0,118670.0,0.1756]
[1755176208533,0.08272325,118690.0,118680.0,0.00319]
[1755176208738,0.087987,118690.0,118680.0,0.00319]
[1755176209149,0.04404612,118690.0,118680.0,0.00319]
[1755176209391,0.04078237,118690.0,118680.0,0.00419]
[1755176209837,0.03878237,118690.0,118680.0,0.00319]
[1755176210050,0.00526375,118710.0,118680.0,0.17171039]
[1755176210260,0.003,118690.0,118680.0,0.37377965]
[1755176210470,0.003,118690.0,118680.0,0.57569965]
[1755176210680,0.004,118690.0,118680.0,0.28670235]
[1755176210889,0.004,118690.0,118680.0,0.45841274]
[1755176210994,0.03739841,118710.0,118700.0,0.16849199]
[1755176211210,0.0052636,118740.0,118700.0,0.17691658]
[1755176211423,0.006,118710.0,118700.0,0.21230124]
[1755176211637,0.006,118710.0,118700.0,0.17797568]
[1755176211948,0.006,118710.0,118700.0,0.35660568]
[1755176212377,0.006,118710.0,118700.0,0.43826983]
[1755176212585,0.006,118710.0,118700.0,0.28888893]
[1755176212809,0.00526226,118770.0,118700.0,0.46428893]
[1755176213038,0.19994624,118770.0,118710.0,0.18230188]
[1755176213256,1.2402452,118770.0,118720.0,0.17536]
[1755176213499,1.2402452,118770.0,118710.0,0.00319]
[1755176213500,0.17978992,118760.0,118710.0,0.00319]
[1755176213696,0.067465,118730.0,118720.0,0.17536]
[1755176213922,0.15018825,118730.0,118690.0,0.028456]
[1755176214303,0.18815657,118730.0,118700.0,0.17851]
[1755176214474,0.407465,118750.0,118710.0,0.17951]
[1755176214696,0.08272325,118740.0,118720.0,0.00319]
[1755176215099,0.10292035,118740.0,118730.0,0.17528]
[1755176215310,0.10588035,118740.0,118730.0,0.17528]
[1755176215554,0.10292035,118740.0,118710.0,0.001]
[1755176215754,0.17983329,118730.0,118700.0,0.002]
[1755176215959,0.02731597,118730.0,118720.0,0.17524]
[1755176216164,0.16846361,118720.0,118700.0,0.002]
[1755176216377,0.08568325,118710.0,118700.0,0.002]
[1755176216594,0.0149335,118720.0,118700.0,0.1772]
[1755176216833,0.16846439,118720.0,118700.0,0.1772]
[1755176217041,0.09765675,118720.0,118710.0,0.001]
[1755176217274,0.26908036,118720.0,118710.0,0.001]
[1755176217491,0.10061675,118720.0,118710.0,0.001]
[1755176217706,0.09765675,118720.0,118710.0,0.001]
[1755176217908,0.1029205,118720.0,118700.0,0.1752]
[1755176218115,0.10296592,118720.0,118700.0,0.19272]
[1755176218310,0.10896592,118720.0,118700.0,0.1762]
[1755176218518,0.10296592,118720.0,118700.0,0.1752]
[1755176218920,0.02624267,118720.0,118710.0,0.001]
[1755176219126,0.02920267,118720.0,118710.0,0.17616]
[1755176219550,0.0719147,118720.0,118710.0,0.17616]
[1755176219753,0.03320267,118720.0,118710.0,0.17616]
[1755176219959,0.02920267,118720.0,118710.0,0.17616]
[1755176220181,0.02393892,118720.0,118710.0,0.17716]
[1755176220398,0.11066217,118720.0,118710.0,0.17716]
[1755176220599,0.10466217,118720.0,118710.0,0.17616]
[1755176220983,0.11492592,118720.0,118700.0,0.001]
[1755176221230,0.08272325,118710.0,118700.0,0.001]
[1755176221441,0.09770217,118710.0,118680.0,0.20510559]
[1755176221640,0.00526375,118700.0,118680.0,0.42025656]
[1755176221850,0.02024267,118700.0,118680.0,0.41183107]
[1755176222054,0.02024267,118700.0,118690.0,0.17504]
[1755176222889,0.02024267,118700.0,118680.0,0.03820521]
[1755176223093,0.10296592,118700.0,118690.0,0.17496]
[1755176223313,0.10296592,118700.0,118690.0,0.19627652]
[1755176223522,0.10296592,118700.0,118680.0,0.03820521]
[1755176223735,0.10892592,118700.0,118690.0,0.001]
[1755176223942,0.10892592,118700.0,118690.0,0.17596]
[1755176223943,0.10333368,118700.0,118690.0,0.17596]
[1755176224145,0.10070217,118700.0,118690.0,0.17596]
[1755176224554,0.09770217,118700.0,118690.0,0.17496]
[1755176224985,0.09770217,118700.0,118690.0,0.001]
[1755176224986,0.10466217,118700.0,118690.0,0.001]
[1755176225198,0.27578684,118700.0,118690.0,0.001]
[1755176225405,0.10316217,118700.0,118690.0,0.17592]
[1755176225619,0.27428684,118700.0,118690.0,0.001]
[1755176225833,0.27365416,118700.0,118690.0,0.17592]
[1755176226044,0.27365416,118700.0,118680.0,0.001]
[1755176226045,0.50850619,118690.0,118680.0,0.001]
[1755176226245,0.59122944,118690.0,118680.0,0.001]
[1755176226448,0.17697866,118660.0,118620.0,0.227239]
[1755176226665,0.17697866,118660.0,118630.0,0.17492]
[1755176226666,0.08535704,118650.0,118630.0,0.17492]
[1755176227253,0.17147039,118680.0,118630.0,0.17799]
[1755176227254,0.00263335,118670.0,118630.0,0.17799]
[1755176227472,0.08272325,118660.0,118630.0,0.40227638]
[1755176227676,0.00263313,118680.0,118650.0,0.17699089]
[1755176228034,0.08272325,118680.0,118660.0,0.00307]
[1755176228287,0.08272325,118670.0,118660.0,0.17488]
[1755176228497,0.0883066,118670.0,118660.0,0.17484]
[1755176228708,0.12290011,118670.0,118660.0,0.17484]
[1755176228919,0.12585011,118670.0,118660.0,0.17484]
[1755176229128,0.12685011,118670.0,118660.0,0.17484]
[1755176229333,0.12390011,118670.0,118660.0,0.17484]
[1755176229798,0.12026676,118670.0,118660.0,0.192324]
[1755176229997,0.12026676,118670.0,118660.0,0.17791]